bitfinex-derivatives/quotes_ETHF0:USTF0_20250810
["timestamp","ask_amount","ask_price","bid_price","bid_amount"]
[1754830628035,0.7096,4201.1,4201.0,0.1621]
[1754830628232,1.5657,4201.1,4201.0,1.85838394]
[1754830628535,1.1471,4201.1,4201.0,1.95898394]
[1754830628731,0.2571,4201.1,4201.0,0.2627]
[1754830630032,0.2571,4201.1,4201.0,2.38399787]
[1754830630236,0.2663,4201.6,4201.5,0.73867]
[1754830630237,0.2571,4201.6,4201.5,0.73867]
[1754830630432,0.5234,4201.6,4201.5,15.93267]
[1754830630738,1.5657,4201.6,4201.5,17.62418469]
[1754830632232,1.5657,4201.6,4201.5,17.62618469]
[1754830632431,1.5657,4201.6,4201.5,15.93467]
[1754830632632,1.5657,4201.6,4201.5,17.62630843]
[1754830633230,1.5657,4201.6,4201.5,2.43030843]
[1754830633537,1.5657,4201.6,4201.5,17.62330843]
[1754830635335,1.5657,4201.6,4201.5,16.88463843]
[1754830635538,1.09966,4201.6,4201.5,15.193]
[1754830636138,2.04166,4201.6,4201.5,15.193]
[1754830636634,1.5657,4201.6,4201.5,15.193]
[1754830639630,0.6849,4202.6,4201.5,15.193]
[1754830639827,1.5657,4201.7,4201.6,0.73866]
[1754830640434,1.5657,4201.7,4201.6,2.43029843]
[1754830641536,1.5657,4201.7,4201.6,0.73866]
[1754830642040,1.5657,4201.7,4201.6,2.43029843]
[1754830642241,1.1471,4201.7,4201.6,2.43029843]
[1754830642842,1.5657,4201.7,4201.6,2.43029843]
[1754830643544,1.5657,4201.7,4201.6,0.73866]
[1754830647346,0.2571,4201.7,4201.6,2.43029843]
[1754830648243,0.942,4202.5,4201.7,0.1006]
[1754830648442,0.942,4202.4,4201.7,0.1006]
[1754830648644,1.0423,4202.3,4202.2,0.1621]
[1754830648947,1.5657,4202.3,4202.2,15.4547]
[1754830649149,1.1282,4202.3,4202.2,15.93059]
[1754830649345,1.5657,4202.3,4202.2,15.93059]
[1754830649647,0.2571,4202.3,4202.2,15.93059]
[1754830649945,0.5234,4202.3,4202.2,15.93059]
[1754830650642,0.7096,4202.3,4202.2,15.93059]
[1754830650943,1.2986,4202.3,4202.2,15.93059]
[1754830651242,1.5657,4202.3,4202.2,15.93059]
[1754830651444,1.5657,4202.3,4202.2,0.47589]
[1754830651647,1.5657,4202.3,4202.2,15.66689]
[1754830652449,0.6237,4202.3,4202.2,15.191]
[1754830653144,1.5657,4202.3,4202.2,15.191]
[1754830653951,1.5657,4202.3,4202.2,15.2916]
[1754830655049,1.5657,4202.3,4202.2,15.191]
[1754830655750,1.5657,4202.3,4202.2,15.2921]
[1754830656151,1.5657,4202.3,4202.2,15.191]
[1754830659652,1.5657,4202.3,4202.2,15.2921]
[1754830661756,2.04158,4202.3,4202.2,15.2921]
[1754830661957,1.5657,4202.3,4202.2,15.2921]
[1754830663057,1.5657,4202.3,4202.2,15.191]
[1754830663757,1.5657,4202.3,4202.2,15.2927]
[1754830665754,1.5657,4202.3,4202.2,15.4554]
[1754830666160,1.5657,4202.3,4202.2,15.4564]
[1754830669664,1.5657,4202.3,4202.2,17.14803843]
[1754830673563,1.5657,4202.3,4202.2,15.4564]
[1754830674263,0.6611,4202.9,4202.3,0.1017]
[1754830674465,0.6419,4202.8,4202.7,0.1637]
[1754830674664,0.6419,4202.8,4202.7,0.2654]
[1754830674966,1.5803,4202.8,4202.7,0.2654]
[1754830675670,1.1806,4202.8,4202.7,0.2654]
[1754830675967,1.5803,4202.8,4202.7,1.95734134]
[1754830676161,1.5803,4202.8,4202.7,0.2654]
[1754830676162,0.2773,4202.8,4202.7,0.2654]
[1754830676363,0.5387,4202.8,4202.7,1.95550896]
[1754830676675,0.7124,4202.8,4202.7,1.95550896]
[1754830676861,0.2773,4202.8,4202.7,1.95550896]
[1754830677066,0.2773,4202.8,4202.7,0.2654]
[1754830677259,0.7124,4202.8,4202.7,0.2654]
[1754830679661,0.2773,4202.8,4202.7,0.2654]
[1754830679867,1.5803,4202.8,4202.7,0.2654]
[1754830680365,0.1737,4202.6,4202.5,0.1017]
[1754830680570,1.5803,4202.6,4202.5,15.185]
[1754830680769,1.5803,4202.6,4202.5,15.2867]
[1754830681172,1.5803,4202.6,4202.5,15.92625]
[1754830683572,1.5803,4202.6,4202.5,17.61525646]
[1754830686173,1.5803,4202.6,4202.5,17.61514809]
[1754830688880,1.5803,4202.6,4202.5,15.92625]
[1754830689377,1.5803,4202.6,4202.5,17.61479898]
[1754830689878,1.5803,4202.6,4202.5,17.61279898]
[1754830693584,1.5803,4202.6,4202.5,15.92425]
[1754830696584,1.5803,4202.6,4202.5,15.92325]
[1754830698483,1.5803,4202.6,4202.5,15.65785]
[1754830699393,1.5803,4202.6,4202.5,15.75895]
[1754830699983,1.5803,4202.6,4202.5,15.92075]
[1754830702094,1.5803,4202.6,4202.5,15.75795]
[1754830703884,0.4758,4203.1,4202.7,0.47583]
[1754830704193,1.5717,4203.0,4202.9,0.1011]
[1754830704394,1.5717,4203.0,4202.8,0.47582]
[1754830704584,1.1545,4202.6,4202.5,2.59715787]
[1754830704783,1.5717,4202.6,4202.5,15.65586]
[1754830705394,1.5717,4202.6,4202.5,15.75696]
[1754830705584,1.5717,4202.6,4202.5,17.87825787]
[1754830706288,1.1545,4202.6,4202.5,18.04005787]
[1754830706483,1.5717,4202.6,4202.5,15.91876]
[1754830706896,1.1545,4202.6,4202.5,15.91876]
[1754830707294,1.5717,4202.6,4202.5,15.91876]
[1754830707497,0.2598,4202.6,4202.5,15.91876]
[1754830709194,0.5227,4202.6,4202.5,15.91876]
[1754830710495,0.6801,4203.3,4203.2,0.47578]
[1754830710690,1.5717,4203.3,4203.2,2.26960986]
[1754830710892,1.5717,4203.3,4203.2,17.61040986]
[1754830711493,1.5717,4203.3,4203.2,15.91768]
[1754830713296,0.6318,4203.3,4203.0,0.57689]
[1754830713495,1.5717,4203.1,4203.0,0.47579]
[1754830713693,1.5717,4203.1,4203.0,15.91669]
[1754830714404,1.3088,4202.9,4202.8,2.59174233]
[1754830714598,1.5717,4202.9,4202.8,17.87084233]
[1754830714899,1.5717,4202.9,4202.8,15.75493]
[1754830715998,1.5717,4202.9,4202.8,15.2791]
[1754830716199,1.5717,4202.9,4202.8,15.178]
[1754830716594,0.6318,4202.9,4202.8,15.178]
[1754830717301,1.5603,4202.9,4202.8,15.2796]
[1754830719391,1.5603,4202.9,4202.8,0.1016]
[1754830719594,1.5603,4202.9,4202.8,15.2786]
[1754830719801,2.03612,4202.9,4202.7,2.11591233]
[1754830720000,1.5493,4202.8,4202.7,15.177]
[1754830721002,1.5493,4202.8,4202.7,15.65284]
[1754830721702,1.5493,4202.8,4202.7,15.75444]
[1754830723993,0.6208,4202.8,4202.6,0.47584]
[1754830724198,1.5493,4202.7,4202.6,0.47584]
[1754830724400,1.5493,4202.7,4202.6,15.65184]
[1754830725504,1.5493,4202.7,4202.6,15.75344]
[1754830727305,1.5493,4202.7,4202.6,15.176]
[1754830727800,1.5493,4202.7,4202.6,15.75345]
[1754830728510,1.5493,4202.7,4202.6,15.91605]
[1754830728700,1.5493,4202.7,4202.6,15.91695]
[1754830730710,0.271,4202.7,4202.6,18.03286233]
[1754830731210,1.5493,4203.4,4203.3,0.57736]
[1754830731408,1.5493,4203.4,4203.3,15.75336]
[1754830732210,1.5493,4203.4,4203.3,17.4464986]
[1754830732501,0.271,4203.4,4203.3,17.6099986]
[1754830732698,1.5493,4203.4,4203.3,15.91686]
[1754830733703,1.5493,4203.4,4203.3,17.60919482]
[1754830738602,0.271,4203.4,4203.3,17.60919482]
[1754830738802,0.5469,4203.4,4203.3,17.60919482]
[1754830739001,1.283,4203.4,4203.3,17.60919482]
[1754830739209,1.5493,4203.4,4203.3,17.60819482]
[1754830743614,1.5493,4203.4,4203.3,15.91586]
[1754830745316,1.5493,4203.4,4203.3,15.91396]
[1754830747113,0.9123,4203.3,4202.9,2.11591233]
[1754830747315,1.535,4203.0,4202.9,0.47581]
[1754830747511,0.6227,4202.7,4202.6,26.57776233]
[1754830747713,1.535,4202.7,4202.6,41.85206233]
[1754830747916,1.535,4202.7,4202.6,39.73615]
[1754830748408,1.1432,4202.7,4202.6,26.67806233]
[1754830748614,1.1432,4202.7,4202.6,42.01256233]
[1754830749518,0.4433,4202.7,4202.6,42.01256233]
[1754830749720,0.2629,4202.7,4202.6,42.01256233]
[1754830750116,0.5205,4202.7,4202.6,42.01256233]
[1754830750410,0.2629,4202.7,4202.6,42.01256233]
[1754830750617,0.2629,4202.7,4202.6,42.00999666]
[1754830751012,0.5205,4202.7,4202.6,42.00999666]
[1754830752420,0.7009,4202.7,4202.6,42.00999666]
[1754830752920,1.0927,4202.7,4202.6,42.00999666]
[1754830753618,1.0927,4202.7,4202.6,39.89665]
[1754830754422,1.535,4203.3,4203.2,0.47578]
[1754830754625,1.535,4203.3,4203.2,17.34074591]
[1754830755216,1.535,4203.3,4203.2,17.44104591]
[1754830755616,1.535,4203.3,4203.2,17.34074591]
[1754830756222,1.535,4203.3,4203.2,16.86496591]
[1754830759321,1.535,4203.3,4203.2,16.96526591]
[1754830759822,0.9123,4203.4,4203.3,0.47577]
[1754830760022,1.535,4203.4,4203.3,2.26703591]
[1754830762126,1.1432,4203.4,4203.3,2.26703591]
[1754830762331,1.0927,4203.4,4203.3,2.42753591]
[1754830762632,1.535,4203.4,4203.3,2.42753591]
[1754830769026,1.535,4203.4,4203.3,0.73657]
[1754830780843,1.5593,4203.0,4202.9,2.58951739]
[1754830781043,1.5593,4203.0,4202.9,15.74781]
[1754830782042,1.5593,4203.0,4202.9,15.90941]
[1754830784349,1.5593,4203.0,4202.9,15.74781]
[1754830784649,1.5593,4203.0,4202.9,15.64681]
[1754830785552,1.5593,4203.0,4202.9,17.76372152]
[1754830786453,1.5593,4203.0,4202.9,17.86472152]
[1754830788254,1.5593,4203.0,4202.9,15.90941]
[1754830789752,1.5593,4203.0,4202.9,0.73841]
[1754830789952,1.5593,4203.0,4202.9,15.90941]
[1754830791954,1.5593,4203.0,4202.9,0.47581]
[1754830792155,1.5593,4203.0,4202.9,15.64581]
[1754830792749,0.6245,4202.7,4202.6,24.62345]
[1754830793053,1.5593,4202.7,4202.6,39.89445]
[1754830793855,1.5593,4202.7,4202.6,39.63185]
[1754830794055,1.5593,4202.7,4202.6,41.85242085]
[1754830794450,1.5593,4202.7,4202.6,39.73285]
[1754830799656,1.5593,4202.7,4202.6,15.74685]
[1754830800361,1.5593,4202.7,4202.6,0.47585]
[1754830800557,1.5593,4202.7,4202.6,15.64585]
[1754830800764,1.5593,4202.7,4202.6,15.74685]
[1754830801361,1.5593,4202.7,4202.6,15.90845]
[1754830804564,0.6245,4202.5,4202.4,2.11957085]
[1754830804857,1.5593,4202.5,4202.4,15.74586]
[1754830806359,1.5593,4202.5,4202.4,0.47586]
[1754830806572,1.5593,4202.5,4202.4,15.64486]
[1754830806862,1.5593,4202.5,4202.4,15.74596]
[1754830810463,1.5593,4202.5,4202.4,15.64486]
[1754830810668,1.5593,4202.5,4202.4,15.74576]
[1754830815069,1.5593,4202.5,4202.4,15.90716]
[1754830815673,1.5593,4202.5,4202.4,0.73816]
[1754830815969,1.5593,4202.5,4202.4,15.90616]
[1754830827271,1.1235,4202.5,4202.4,15.90616]
[1754830827474,0.2812,4203.0,4202.9,0.73811]
[1754830827667,0.5393,4203.0,4202.9,17.59718634]
[1754830827869,1.5781,4203.0,4202.9,15.74271]
[1754830828072,1.5781,4203.0,4202.9,17.43566781]
[1754830828673,1.5781,4203.0,4202.9,15.74271]
[1754830830274,1.5781,4203.0,4202.9,17.43565754]
[1754830833873,1.5781,4203.0,4202.9,15.74271]
[1754830834273,1.5781,4203.0,4202.9,15.90431]
[1754830834777,1.5781,4203.0,4202.9,0.47581]
[1754830837181,1.5781,4203.0,4202.9,0.73831]
[1754830838377,1.5781,4203.0,4202.9,0.57681]
[1754830839379,1.5781,4203.0,4202.7,15.164]
[1754830839581,1.5781,4203.0,4202.9,1.69376732]
[1754830840885,1.5781,4203.0,4202.9,0.2625]
[1754830842782,1.1577,4203.0,4202.9,0.2625]
[1754830842984,0.2812,4203.0,4202.9,0.2625]
[1754830843282,0.554,4203.0,4202.9,0.2625]
[1754830843486,0.2812,4203.0,4202.9,0.2625]
[1754830843784,0.554,4203.0,4202.9,0.2625]
[1754830843982,1.1,4203.5,4203.0,0.4758]
[1754830844185,1.1,4203.5,4203.4,0.2625]
[1754830844381,1.3728,4203.5,4203.4,15.4245]
[1754830844583,1.5458,4203.5,4203.4,15.4245]
[1754830844885,2.4317,4203.5,4203.4,15.4245]
[1754830845087,2.7068,4203.5,4203.4,0.2625]
[1754830845385,1.6068,4203.4,4203.3,15.263]
[1754830845584,1.6068,4203.4,4203.3,15.4245]
[1754830847484,1.1848,4203.4,4203.3,15.4245]
[1754830847684,1.6068,4203.4,4203.3,15.4245]
[1754830848576,0.9999,4203.4,4203.3,15.4245]
[1754830848785,0.5518,4203.4,4203.3,15.4245]
[1754830849387,1.6068,4203.4,4203.3,15.4245]
[1754830852788,1.6068,4203.4,4203.3,0.2625]
[1754830852989,0.9058,4203.4,4203.3,15.159]
[1754830853389,0.9058,4203.4,4203.3,16.95127442]
[1754830853579,1.6068,4203.4,4203.3,16.95127442]
[1754830853783,1.1848,4203.4,4203.3,17.11277442]
[1754830853979,1.6068,4203.4,4203.3,17.11277442]
[1754830854884,1.6068,4203.4,4203.3,16.95127442]
[1754830855292,1.6068,4203.4,4203.3,16.85027442]
[1754830855491,1.6068,4203.4,4203.3,15.159]
[1754830855791,1.6068,4203.4,4203.3,15.63477]
[1754830855992,1.6068,4203.4,4203.2,1.69127442]
[1754830856188,1.6068,4203.3,4203.2,1.69127442]
[1754830856988,1.6068,4203.3,4203.1,1.69127442]
[1754830857190,1.6068,4203.2,4203.1,1.69127442]
[1754830857882,1.6068,4203.2,4203.1,1.79227442]
[1754830858087,1.1,4203.5,4203.2,0.47578]
[1754830858290,0.173,4203.1,4203.0,0.101]
[1754830858591,1.6068,4203.1,4203.0,16.94966432]
[1754830859088,0.633,4203.0,4202.7,1.69166432]
[1754830859394,1.6068,4202.8,4202.7,1.79266432]
[1754830859690,1.6068,4202.8,4202.7,1.95416432]
[1754830861092,1.6068,4202.8,4202.7,1.69166432]
[1754830861690,1.6068,4202.7,4202.6,15.258]
[1754830861889,1.6068,4202.7,4202.6,16.95134315]
[1754830863994,1.6068,4202.7,4202.6,17.11284315]
[1754830864395,1.6068,4202.7,4202.6,15.4195]
[1754830865397,1.6068,4202.7,4202.6,17.11284315]
[1754830866295,1.6068,4202.7,4202.6,15.4195]
[1754830868990,1.6068,4202.7,4202.6,17.11284315]
[1754830869191,1.6068,4202.7,4202.6,0.2625]
[1754830869394,1.6068,4202.7,4202.6,15.4195]
[1754830870301,1.6068,4202.7,4202.6,15.89535]
[1754830872698,1.6068,4202.7,4202.6,15.4195]
[1754830872996,1.6068,4202.7,4202.6,15.89535]
[1754830873203,1.6068,4202.7,4202.6,15.4195]
[1754830873803,1.6068,4202.7,4202.6,17.11284315]
[1754830875202,1.6068,4202.7,4202.6,15.4195]
[1754830875503,1.6068,4202.7,4202.6,17.11284315]
[1754830876697,2.08264,4202.7,4202.6,1.95584315]
[1754830876903,1.6068,4202.7,4202.6,15.4195]
[1754830878296,0.47586,4202.5,4202.3,1.69334315]
[1754830878500,1.09048,4202.3,4202.2,15.156]
[1754830878701,2.02398,4202.3,4202.2,15.156]
[1754830878905,2.02398,4202.3,4202.0,25.68034315]
[1754830879101,1.3723,4202.2,4202.1,15.156]
[1754830879302,1.5481,4202.2,4202.1,15.4181]
[1754830879499,1.5481,4202.2,4202.1,0.2621]
[1754830879702,1.5481,4202.2,4202.1,15.4181]
[1754830882716,1.5481,4202.2,4202.1,15.894]
[1754830883116,1.5481,4202.2,4202.1,17.58734315]
[1754830886616,1.5481,4202.2,4202.1,2.43134315]
[1754830887027,1.5481,4202.2,4202.1,17.58734315]
[1754830888029,1.5481,4202.2,4202.1,2.43134315]
[1754830888223,1.5481,4202.2,4202.1,17.58734315]
[1754830888621,2.02399,4202.2,4202.0,1.69334315]
[1754830888826,1.5481,4202.1,4202.0,1.69334315]
[1754830889320,0.6146,4202.1,4202.0,0.47592]
[1754830889520,0.6146,4202.1,4202.0,15.63192]
[1754830889721,0.47584,4202.7,4202.0,15.4181]
[1754830890027,1.5481,4202.1,4202.0,17.58736315]
[1754830890621,1.5481,4202.1,4202.0,17.58571593]
[1754830890822,1.5481,4202.1,4202.0,15.89402]
[1754830892828,1.5481,4202.1,4202.0,17.58614917]
[1754830897327,1.1541,4202.1,4202.0,17.58614917]
[1754830897520,1.5427,4202.1,4202.0,17.58614917]
[1754830898830,0.2619,4202.1,4202.0,17.58614917]
[1754830899031,0.2619,4202.1,4202.0,15.89402]
[1754830899234,0.2619,4202.1,4202.0,18.01359085]
[1754830900533,0.5245,4202.1,4202.0,18.01359085]
[1754830901828,0.9316,4203.2,4202.1,1.18976]
[1754830902034,1.5396,4203.1,4203.0,0.7378]
[1754830902233,1.5396,4203.1,4203.0,15.8918]
[1754830902731,1.5396,4203.1,4203.0,17.58352861]
[1754830903632,1.5396,4203.1,4203.0,15.8918]
[1754830910334,1.5396,4203.1,4203.0,17.58352861]
[1754830910335,0.2804,4203.1,4203.0,17.58352861]
[1754830910529,0.543,4203.1,4203.0,17.58352861]
[1754830910931,0.7249,4203.1,4203.0,17.58352861]
[1754830911230,0.7249,4203.1,4203.0,2.42952861]
[1754830911435,1.5396,4203.1,4203.0,2.42952861]
[1754830911835,1.5396,4203.1,4203.0,17.31852861]
[1754830912030,1.5396,4203.1,4203.0,17.41932861]
[1754830912239,1.5396,4203.1,4203.0,15.7276]
[1754830912428,1.5396,4203.1,4203.0,15.8888]
[1754830912938,1.151,4203.1,4203.0,17.58052861]
[1754830913131,0.4623,4203.1,4203.0,17.58052861]
[1754830913327,0.7249,4203.1,4203.0,15.8888]
[1754830913836,0.2804,4203.1,4203.0,15.8888]
[1754830914436,0.2804,4203.1,4203.0,17.57515251]
[1754830916035,1.1,4203.5,4203.4,0.73776]
[1754830916240,1.5396,4204.4,4204.3,0.73766]
[1754830916439,1.5396,4204.4,4204.3,15.88766]
[1754830917436,0.6512,4205.5,4204.4,0.1008]
[1754830917637,0.6512,4205.5,4204.9,0.47558]
[1754830917638,0.608,4205.0,4204.9,0.47558]
[1754830917838,1.5396,4205.0,4204.9,0.57638]
[1754830918237,1.5396,4205.0,4204.9,0.73758]
[1754830918934,1.5396,4205.0,4204.9,0.262]
[1754830919438,1.5396,4205.0,4204.9,0.1008]
[1754830919634,1.5396,4205.0,4204.7,0.57641]
[1754830919837,0.608,4205.0,4204.6,0.47562]
[1754830920033,1.5396,4204.9,4204.8,0.1008]
[1754830923238,1.5396,4204.7,4204.6,0.57642]
[1754830923742,1.5396,4204.7,4204.6,0.73762]
[1754830941361,1.5396,4204.7,4204.6,2.42539821]
[1754830943258,1.5396,4204.7,4204.6,0.73762]
[1754830945462,1.5396,4204.7,4204.6,15.87562]
[1754830945851,0.2804,4204.7,4204.6,15.87562]
[1754830946864,2.46535741,4207.2,4204.8,1.18899]
[1754830947158,1.5679,4205.6,4205.5,0.47551]
[1754830947363,1.5679,4205.6,4205.5,15.87201]
[1754830950061,1.5679,4205.6,4205.5,15.61251]
[1754830950365,1.5679,4205.6,4205.5,15.137]
[1754830950966,1.5679,4205.6,4205.5,15.136]
[1754830951367,1.5679,4205.6,4205.5,15.2358]
[1754830953664,1.5679,4205.6,4205.5,16.93101279]
[1754830954267,1.5679,4205.6,4205.5,16.83121279]
[1754830954964,2.04341,4205.6,4205.5,1.69521279]
[1754830955168,1.08553,4205.4,4205.3,0.99071279]
[1754830955361,2.04343,4205.4,4205.2,15.135]
[1754830955562,1.5409,4205.3,4205.2,15.135]
[1754830955861,1.5409,4205.3,4205.2,15.99285]
[1754830956056,0.4755,4205.7,4205.3,0.47554]
[1754830956262,1.1978,4205.4,4205.3,1.31474]
[1754830956462,1.5409,4205.4,4205.3,1.31474]
[1754830957763,1.5409,4205.4,4205.3,0.47554]
[1754830957968,1.5409,4205.4,4205.3,0.85784]
[1754830958568,1.5409,4205.4,4205.3,1.13414]
[1754830958869,1.5409,4205.4,4205.3,0.47554]
[1754830959369,1.5409,4205.4,4205.2,15.61055]
[1754830959562,1.5409,4205.3,4205.2,15.135]
[1754830961069,1.5409,4205.5,4205.4,1.31473]
[1754830962364,1.5409,4205.5,4205.4,0.47553]
[1754830962565,1.5409,4205.5,4205.4,0.85783]
[1754830963163,0.6004,4205.3,4205.2,0.85784]
[1754830963365,1.5409,4205.3,4205.2,0.85784]
[1754830964271,1.5409,4205.3,4205.2,1.31474]
[1754830964570,1.5409,4205.3,4205.2,1.46024]
[1754830964972,1.5409,4205.3,4205.2,1.31474]
[1754830965475,0.8773,4205.3,4205.2,1.46024]
[1754830966173,0.5342,4205.3,4205.2,1.46024]
[1754830966473,0.2593,4205.3,4205.2,1.46024]
[1754830966772,0.53765135,4205.5,4205.4,1.46023]
[1754830966970,1.54435135,4205.5,4205.4,1.31473]
[1754830967473,1.54435135,4205.5,4205.4,1.13413]
[1754830968079,1.54435135,4205.5,4205.2,1.69476457]
[1754830968080,0.6004,4205.3,4205.2,1.69476457]
[1754830968371,0.00345135,4205.5,4205.1,3.00952457]
[1754830968372,1.5409,4205.2,4205.1,3.00952457]
[1754830968575,1.5409,4205.2,4205.1,1.31476]
[1754830968772,0.5342,4205.2,4205.1,1.46026]
[1754830969071,1.5409,4205.2,4205.1,1.31476]
[1754830969275,1.5409,4205.2,4205.1,0.2763]
[1754830969477,1.5409,4205.2,4205.1,1.69525627]
[1754830969665,0.5342,4205.1,4205.0,1.69525627]
[1754830969868,1.5409,4205.1,4205.0,1.69525627]
[1754830970471,1.5409,4205.1,4205.0,2.53445627]
[1754830971975,1.5409,4205.1,4205.0,0.6586]
[1754830972565,1.5409,4205.1,4205.0,2.53445627]
[1754830972968,1.5409,4205.1,4205.0,17.68245627]
[1754830973371,1.5409,4205.1,4205.0,2.53445627]
[1754830973769,1.5409,4205.1,4205.0,0.8392]
[1754830976767,0.00345135,4205.5,4205.0,0.3823]
[1754830976973,0.62145135,4205.5,4205.4,0.9847]
[1754830977178,1.02775135,4205.5,4205.4,0.9847]
[1754830977475,1.28705135,4205.5,4205.4,0.9847]
[1754830977969,0.88075135,4205.5,4205.4,0.9847]
[1754830978171,0.53765135,4205.5,4205.4,0.9847]
[1754830978672,0.00345135,4205.5,4205.4,0.9847]
[1754830980173,0.88075135,4205.5,4205.4,2.95818691]
[1754830980378,1.54435135,4205.5,4205.4,2.95818691]
[1754830980672,0.00345135,4205.5,4205.4,18.25768691]
[1754830980874,0.47535,4207.1,4206.5,0.4754]
[1754830981074,1.5409,4206.7,4206.6,1.3146]
[1754830981377,1.5409,4206.7,4206.5,15.159]
[1754830981573,0.6004,4206.7,4206.5,15.159]
[1754830981780,1.5409,4206.6,4206.5,15.9982]
[1754830982781,1.1346,4206.6,4206.5,15.9982]
[1754830982982,1.1346,4206.6,4206.5,16.1437]
[1754830983278,1.5409,4206.6,4206.5,17.83459249]
[1754830983672,1.5409,4206.6,4206.5,15.9982]
[1754830984682,1.5409,4206.6,4206.5,16.1437]
[1754830985773,1.5409,4206.6,4206.5,15.9982]
[1754830985973,1.5409,4206.6,4206.5,16.1436]
[1754830987083,1.5409,4206.6,4206.5,15.9982]
[1754830992887,0.8773,4206.6,4206.5,16.1436]
[1754830993090,1.2636,4206.6,4206.5,16.1436]
[1754830993292,1.5195,4206.6,4206.5,15.9982]
[1754830994398,0.8773,4206.6,4206.5,16.1436]
[1754830994694,1.5195,4206.6,4206.5,16.1436]
[1754830994895,1.5195,4206.6,4206.5,15.9982]
[1754830999401,0.5342,4206.6,4206.5,15.9982]
[1754830999602,0.5342,4206.6,4206.5,16.1436]
[1754830999901,1.1,4207.5,4207.1,0.89193]
[1754830999902,1.5036,4207.2,4207.1,0.89193]
[1754831000101,1.5036,4207.2,4207.1,16.02393]
[1754831000492,1.5036,4207.2,4207.1,15.60733]
[1754831000700,1.5036,4207.2,4207.1,16.45853]
[1754831002704,1.1173,4207.2,4207.1,16.60393]
[1754831002997,1.5036,4207.2,4207.1,16.60393]
[1754831003306,1.5036,4207.2,4207.1,16.45853]
[1754831003494,1.1173,4207.2,4207.1,16.45853]
[1754831003696,1.1173,4207.2,4207.1,16.60393]
[1754831003897,1.5036,4207.2,4207.1,16.45853]
[1754831006104,1.5036,4207.2,4207.1,15.132]
[1754831008297,1.2425,4206.8,4206.7,1.15418]
[1754831008506,1.5036,4206.8,4206.7,15.87158]
[1754831008702,1.5036,4206.8,4206.7,16.28818]
[1754831008903,1.5036,4206.8,4206.7,15.8128]
[1754831009106,1.5036,4206.8,4206.7,15.134]
[1754831009306,0.5983,4206.8,4206.6,15.6074]
[1754831009602,1.5036,4206.7,4206.6,0.4166]
[1754831009803,1.3331,4206.6,4206.5,2.16629249]
[1754831010109,1.5036,4206.6,4206.5,1.69089249]
[1754831010610,1.07371,4206.5,4206.4,16.82289249]
[1754831010808,1.97901,4206.5,4206.4,15.132]
[1754831011009,0.5983,4206.5,4206.3,15.133]
[1754831011211,1.5036,4206.4,4206.3,0.4166]
[1754831011514,1.5036,4206.4,4206.3,15.5496]
[1754831012514,1.5036,4206.4,4206.3,15.8118]
[1754831012810,1.5036,4206.4,4206.3,15.9842]
[1754831013712,1.5036,4206.4,4206.3,18.15052249]
[1754831014303,0.5983,4206.4,4206.3,1.69280656]
[1754831014510,0.5983,4206.4,4206.2,1.69280656]
[1754831014707,1.5036,4206.1,4206.0,15.13]
[1754831015914,0.5983,4206.1,4206.0,15.135]
[1754831016418,0.5983,4206.1,4206.0,15.5401]
[1754831016616,1.5075,4206.1,4206.0,15.816]
[1754831017216,1.5075,4206.1,4206.0,15.5401]
[1754831019720,1.5458,4205.9,4205.8,1.69280656]
[1754831019922,1.5458,4205.9,4205.8,15.132]
[1754831020216,1.29,4205.4,4205.2,1.69280656]
[1754831020414,0.6366,4205.1,4205.0,1.69280656]
[1754831020615,1.5458,4205.1,4205.0,17.68890656]
[1754831021013,1.5458,4205.1,4205.0,2.55490656]
[1754831021210,1.5458,4205.1,4205.0,15.9961]
[1754831022812,0.47558,4205.0,4204.7,1.69280656]
[1754831023122,1.5458,4204.5,4204.4,24.3741]
[1754831023318,1.5458,4204.5,4204.4,39.5081]
[1754831024115,1.5458,4204.5,4204.4,39.103]
[1754831024415,1.5458,4204.5,4204.4,39.5081]
[1754831024614,1.1545,4204.5,4204.4,39.5081]
[1754831024814,0.8987,4205.1,4205.0,1.33767]
[1754831025015,1.5458,4205.1,4205.0,16.47167]
[1754831025219,1.5458,4205.1,4205.0,15.135]
[1754831025719,1.5458,4205.1,4205.0,15.5401]
[1754831025921,1.5458,4204.5,4204.4,24.44465]
[1754831026220,1.5458,4204.5,4204.4,39.98675]
[1754831026518,1.5458,4204.5,4204.4,40.44575]
[1754831026718,1.1545,4204.5,4204.4,40.59165]
[1754831027617,0.5179,4205.9,4204.6,0.1456]
[1754831027813,0.5179,4205.9,4204.4,39.108]
[1754831027814,1.18863,4206.2,4204.7,0.4051]
[1754831028021,2.02134,4205.4,4205.3,0.8621]
[1754831028218,1.11214,4205.4,4205.0,0.47558]
[1754831028412,0.2558,4204.9,4204.4,23.969]
[1754831028617,1.5458,4204.5,4204.4,24.90165]
[1754831028818,0.8817,4204.5,4204.4,40.18625]
[1754831029011,0.8817,4204.5,4204.4,40.44575]
[1754831029218,1.5458,4204.5,4204.4,40.04065]
[1754831029418,1.5458,4204.5,4204.4,40.44575]
[1754831029924,1.5458,4204.5,4204.4,40.44775]
[1754831030820,1.5458,4204.5,4204.4,24.8311]
[1754831031015,1.5458,4204.5,4204.4,39.9711]
[1754831031212,1.5458,4204.8,4204.7,0.9326]
[1754831031412,1.5458,4204.8,4204.7,16.0716]
[1754831031624,0.2728,4205.2,4205.1,0.457]
[1754831031823,0.6366,4205.2,4205.1,15.14]